fUST/lending_fUST_20250827
["ID","MTS","AMOUNT","RATE_DAILY","PERIOD"]
[381597821,1756294239007,-1000.0,0.00021348,2]
[381597823,1756294239018,-1000.0,0.00021348,2]
[381597825,1756294239028,-453.9708481,0.0002137,2]
[381597827,1756294239039,-153.0,0.0002137,2]
[381597829,1756294239051,-362.2490545,0.0002137,2]
[381597831,1756294239062,-153.0,0.0002137,2]
[381597833,1756294239073,-500.0,0.00021696,2]
[381597835,1756294239083,-1282.05008283,0.00021724,2]
[381597837,1756294239094,-335.84458903,0.00021774,2]
[381597839,1756294239104,-613.25,0.00021807,3]
[381597842,1756294239115,-468.01,0.00021807,3]
[381597844,1756294239125,-234.01,0.00021807,3]
[381597846,1756294239136,-702.05,0.00021807,3]
[381597848,1756294239147,-583.23,0.00021807,3]
[381597850,1756294239158,-151.0,0.00021807,3]
[381597852,1756294239169,-151.0,0.00021807,3]
[381597854,1756294239179,-152.24537975,0.00021807,3]
[381597856,1756294239190,-245.80550694,0.00021807,2]
[381597858,1756294239200,-500.0,0.00021807,3]
[381597860,1756294239210,-500.0,0.00021807,3]
[381597863,1756294239221,-1282.05008279,0.00021814,2]
[381597865,1756294239231,-370000.0,0.00021817,2]
[381597867,1756294239243,-500.0,0.00021824,2]
[381597869,1756294239253,-500.0,0.00021824,2]
[381597871,1756294239263,-500.0,0.00021824,2]
[381597873,1756294239273,-500.0,0.00021824,2]
[381597875,1756294239282,-500.0,0.00021824,2]
[381597877,1756294239293,-1015.0,0.00021824,2]
[381597879,1756294239304,-500.0,0.00021824,2]
[381597881,1756294239315,-151.50829414,0.00021824,2]
[381597883,1756294239325,-151.0,0.00021824,2]
[381597885,1756294239336,-151.18953785,0.00021824,2]
[381597888,1756294239346,-151.0,0.00021824,2]
[381597890,1756294239358,-500.0,0.00021824,2]
[381597892,1756294239368,-151.0,0.00021824,2]
[381597894,1756294239378,-178.68953908,0.00021824,2]
[381597896,1756294239390,-155.18906074,0.00021824,2]
[381597898,1756294239400,-500.0,0.00021824,2]
[381597900,1756294239411,-500.0,0.00021824,2]
[381597902,1756294239421,-1002.52419901,0.00021848,2]
[381597904,1756294239431,-517.80559892,0.00021848,2]
[381597906,1756294239440,-500.0,0.00021848,2]
[381597908,1756294239451,-500.0,0.00021848,2]
[381597910,1756294239461,-501.68822073,0.00021848,2]
[381597912,1756294239471,-581.22516506,0.00021848,2]
[381597914,1756294239480,-500.0,0.00021848,2]
[381597916,1756294239491,-1000.0,0.00021848,2]
[381597918,1756294239502,-397.68993549,0.00021848,2]
[381597921,1756294239512,-1000.0,0.00021848,2]
[381597923,1756294239522,-151.0,0.00021873,2]
[381597925,1756294239533,-500.0,0.00021873,2]
[381597927,1756294239544,-152.70876926,0.00021873,2]
[381597929,1756294239554,-151.0,0.00021873,2]
[381597931,1756294239565,-500.0,0.00021873,2]
[381597933,1756294239575,-151.0,0.00021873,2]
[381597935,1756294239586,-154.97535819,0.00021873,2]
[381597938,1756294239597,-151.0,0.00021873,2]
[381597940,1756294239607,-152.38757537,0.00021873,2]
[381597942,1756294239618,-151.0,0.00021873,2]
[381597944,1756294239628,-151.0,0.00021873,2]
[381597946,1756294239639,-151.95393366,0.00021873,2]
[381597948,1756294239650,-500.0,0.00021873,2]
[381597950,1756294239660,-152.69064147,0.00021873,2]
[381597952,1756294239670,-151.0,0.00021873,2]
[381597954,1756294239680,-379.05304265,0.00021888,2]
[381597956,1756294239691,-1500.0,0.00021896,2]
[381597959,1756294239701,-1500.0,0.00021896,2]
[381597961,1756294239712,-1500.0,0.00021896,2]
[381597963,1756294239722,-1500.0,0.00021896,2]
[381597965,1756294239732,-1500.0,0.00021896,2]
[381597967,1756294239743,-151.0,0.00021896,2]
[381597969,1756294239753,-151.0,0.00021896,2]
[381597971,1756294239763,-151.0,0.00021896,2]
[381597973,1756294239773,-151.0,0.00021896,2]
[381597975,1756294239783,-500.0,0.00021896,2]
[381597977,1756294239793,-151.0,0.00021896,2]
[381597979,1756294239803,-500.0,0.00021896,2]
[381597981,1756294239814,-201.93286099,0.00021896,2]
[381597983,1756294239824,-151.0,0.00021896,2]
[381597985,1756294239835,-500.0,0.00021896,2]
[381597988,1756294239846,-151.0,0.00021896,2]
[381597990,1756294239856,-500.0,0.00021896,2]
[381597992,1756294239866,-151.0,0.00021896,2]
[381597994,1756294239876,-500.0,0.00021896,2]
[381597996,1756294239886,-151.0,0.00021896,2]
[381597998,1756294239896,-500.0,0.00021896,2]
[381598035,1756294240233,-151.0,0.00021896,2]
[381598037,1756294240250,-500.0,0.00021896,2]
[381598039,1756294240261,-151.0,0.00021896,2]
[381598041,1756294240271,-500.0,0.00021896,2]
[381598043,1756294240281,-151.0,0.00021896,2]
[381598045,1756294240291,-500.0,0.00021896,2]
[381598047,1756294240300,-500.0,0.00021896,2]
[381598049,1756294240310,-500.0,0.00021896,2]
[381598051,1756294240320,-569.00676989,0.00021896,2]
[381598053,1756294240330,-151.0,0.000219,4]
[381598055,1756294240340,-151.0,0.000219,4]
[381598057,1756294240350,-1282.05008279,0.00021905,2]
[381598059,1756294240359,-1999.0373657,0.00021917,2]
[381598061,1756294240369,-480.0,0.00021917,2]
[381598063,1756294240378,-452.8483116,0.00021917,2]
[381598065,1756294240388,-480.0,0.00021917,2]
[381598067,1756294240398,-40056.342551,0.00021917,2]
[381598070,1756294240409,-480.0,0.00021917,2]
[381598072,1756294240418,-505.83,0.00021917,2]
[381598074,1756294240428,-480.0,0.00021917,2]
[381598076,1756294240437,-4771.3049384,0.00021917,2]
[381598078,1756294240446,-480.0,0.00021917,2]
[381598080,1756294240456,-480.0,0.00021917,2]
[381598082,1756294240465,-480.0,0.00021917,2]
[381598083,1756294240474,-480.0,0.00021917,2]
[381598085,1756294240484,-480.0,0.00021917,2]
[381598087,1756294240494,-1858.26,0.00021917,2]
[381598089,1756294240503,-480.0,0.00021917,2]
[381598092,1756294240513,-480.0,0.00021917,2]
[381598094,1756294240523,-480.0,0.00021917,2]
[381598096,1756294240533,-480.0,0.00021917,2]
[381598098,1756294240542,-480.0,0.00021917,2]
[381598100,1756294240552,-480.0,0.00021917,2]
[381598102,1756294240562,-480.0,0.00021917,2]
[381598104,1756294240571,-480.0,0.00021917,2]
[381598106,1756294240581,-151.0,0.00021917,2]
[381598108,1756294240591,-480.0,0.00021917,2]
[381598110,1756294240602,-480.0,0.00021917,2]
[381598112,1756294240613,-480.0,0.00021917,2]
[381598114,1756294240624,-480.0,0.00021917,2]
[381598116,1756294240634,-480.0,0.00021917,2]
[381598118,1756294240646,-480.0,0.00021917,2]
[381598120,1756294240656,-480.0,0.00021917,2]
[381598122,1756294240666,-480.0,0.00021917,2]
[381598124,1756294240676,-480.0,0.00021917,2]
[381598126,1756294240686,-480.0,0.00021917,2]
[381598128,1756294240695,-480.0,0.00021917,2]
[381598130,1756294240705,-480.0,0.00021917,2]
[381598132,1756294240714,-270.285985,0.00021917,2]
[381598134,1756294240724,-480.0,0.00021917,2]
[381598136,1756294240734,-480.0,0.00021917,2]
[381598138,1756294240743,-2740.35,0.00021917,2]
[381598140,1756294240752,-480.0,0.00021917,2]
[381598142,1756294240762,-480.0,0.00021917,2]
[381598144,1756294240772,-480.0,0.00021917,2]
[381598146,1756294240781,-480.0,0.00021917,2]
[381598148,1756294240791,-480.0,0.00021917,2]
[381598150,1756294240800,-480.0,0.00021917,2]
[381598152,1756294240810,-480.0,0.00021917,2]
[381598154,1756294240827,-627.51,0.00021917,2]
[381598156,1756294240840,-480.0,0.00021917,2]
[381598158,1756294240851,-153.58715408,0.00021917,2]
[381598202,1756294241274,-326.41284592,0.00021917,2]
[381598204,1756294241283,-151.0,0.00021917,2]
[381598206,1756294241293,-480.0,0.00021917,2]
[381598208,1756294241302,-480.0,0.00021917,2]
[381598211,1756294241312,-480.0,0.00021917,2]
[381598212,1756294241321,-480.0,0.00021917,2]
[381598214,1756294241330,-480.0,0.00021917,2]
[381598217,1756294241340,-480.0,0.00021917,2]
[381598219,1756294241349,-344.6034292,0.00021917,2]
[381598221,1756294241358,-480.0,0.00021917,2]
[381598223,1756294241367,-480.0,0.00021917,2]
[381598225,1756294241377,-480.0,0.00021917,2]
[381598227,1756294241386,-482.27556809,0.00021917,2]
[381598229,1756294241396,-480.0,0.00021917,2]
[381598231,1756294241405,-480.0,0.00021917,2]
[381598233,1756294241415,-480.0,0.00021917,2]
[381598235,1756294241424,-480.0,0.00021917,2]
[381598237,1756294241433,-480.0,0.00021917,2]
[381598239,1756294241442,-480.0,0.00021917,2]
[381598241,1756294241451,-480.0,0.00021917,2]
[381598243,1756294241460,-480.0,0.00021917,2]
[381598245,1756294241469,-480.0,0.00021917,2]
[381598247,1756294241479,-480.0,0.00021917,2]
[381598249,1756294241488,-480.0,0.00021917,2]
[381598251,1756294241498,-151.0,0.00021917,2]
[381598253,1756294241507,-480.0,0.00021917,2]
[381598255,1756294241516,-480.0,0.00021917,2]
[381598257,1756294241525,-480.0,0.00021917,2]
[381598259,1756294241535,-480.0,0.00021917,2]
[381598261,1756294241544,-151.0,0.00021917,2]
[381598263,1756294241553,-480.0,0.00021917,2]
[381598265,1756294241563,-705.7,0.00021917,2]
[381598267,1756294241572,-480.0,0.00021917,2]
[381598269,1756294241581,-480.0,0.00021917,2]
[381598271,1756294241593,-480.0,0.00021917,2]
[381598273,1756294241603,-290.548006,0.00021917,2]
[381598275,1756294241611,-480.0,0.00021917,2]
[381598277,1756294241621,-480.0,0.00021917,2]
[381598279,1756294241630,-480.0,0.00021917,2]
[381598281,1756294241639,-480.0,0.00021917,2]
[381598283,1756294241649,-480.0,0.00021917,2]
[381598285,1756294241659,-480.0,0.00021917,2]
[381598287,1756294241669,-480.0,0.00021917,2]
[381598289,1756294241679,-480.0,0.00021917,2]
[381598291,1756294241688,-480.0,0.00021917,2]
[381598293,1756294241698,-676.64,0.00021917,2]
[381598295,1756294241707,-285.52630363,0.00021917,2]
[381598297,1756294241717,-573.58,0.00021917,2]
[381598299,1756294241726,-480.0,0.00021917,2]
[381598301,1756294241736,-480.0,0.00021917,2]
[381598303,1756294241745,-480.0,0.00021917,2]
[381598305,1756294241754,-480.0,0.00021917,2]
[381598307,1756294241764,-480.0,0.00021917,2]
[381598309,1756294241773,-151.0,0.00021917,2]
[381598311,1756294241782,-480.0,0.00021917,2]
[381598313,1756294241791,-480.0,0.00021917,2]
[381598315,1756294241801,-480.0,0.00021917,2]
[381598317,1756294241810,-644.69,0.00021917,2]
[381598319,1756294241820,-480.0,0.00021917,2]
[381598321,1756294241829,-480.0,0.00021917,2]
[381598323,1756294241839,-480.0,0.00021917,2]
[381598325,1756294241849,-480.0,0.00021917,2]
[381598327,1756294241858,-491.07388586,0.00021917,2]
[381598329,1756294241868,-560.93,0.00021917,2]
[381598331,1756294241877,-151.0,0.00021917,2]
[381598333,1756294241886,-151.0,0.00021917,2]
[381598335,1756294241895,-480.0,0.00021917,2]
[381598336,1756294241904,-480.0,0.00021917,2]
[381598337,1756294241914,-480.0,0.00021917,2]
[381598338,1756294241923,-480.0,0.00021917,2]
[381598339,1756294241934,-1311.66,0.00021917,2]
[381598340,1756294241943,-480.0,0.00021917,2]
[381598341,1756294241953,-502.53,0.00021917,2]
[381598342,1756294241962,-480.0,0.00021917,2]
[381598343,1756294241972,-480.0,0.00021917,2]
[381598344,1756294241981,-480.0,0.00021917,2]
[381598345,1756294241991,-480.0,0.00021917,2]
[381598346,1756294242000,-480.0,0.00021917,2]
[381598347,1756294242009,-480.0,0.00021917,2]
[381598348,1756294242018,-600.0,0.00021917,2]
[381598349,1756294242027,-480.0,0.00021917,2]
[381598350,1756294242037,-480.0,0.00021917,2]
[381598352,1756294242051,-480.0,0.00021917,2]
[381598353,1756294242061,-480.0,0.00021917,2]
[381598354,1756294242070,-480.0,0.00021917,2]
[381598355,1756294242080,-480.0,0.00021917,2]
[381598357,1756294242090,-480.0,0.00021917,2]
[381598359,1756294242100,-257.40755624,0.00021917,2]
[381598361,1756294242110,-480.0,0.00021917,2]
[381598363,1756294242121,-617.98,0.00021917,2]
[381598365,1756294242130,-480.0,0.00021917,2]
[381598367,1756294242140,-480.0,0.00021917,2]
[381598369,1756294242149,-480.0,0.00021917,2]
[381598371,1756294242159,-480.0,0.00021917,2]
[381598373,1756294242169,-480.0,0.00021917,2]
[381598375,1756294242178,-480.0,0.00021917,2]
[381598377,1756294242188,-480.0,0.00021917,2]
[381598379,1756294242198,-151.0,0.00021917,2]
[381598381,1756294242207,-480.0,0.00021917,2]
[381598383,1756294242217,-151.0,0.00021917,2]
[381598385,1756294242226,-155.229889,0.00021917,2]
[381598387,1756294242236,-596.46369372,0.00021917,2]
[381598389,1756294242246,-634.13,0.00021917,2]
[381598391,1756294242256,-480.0,0.00021917,2]
[381598393,1756294242266,-774.02,0.00021917,2]
[381598395,1756294242276,-480.0,0.00021917,2]
[381598397,1756294242286,-301.697199,0.00021917,2]
[381598399,1756294242296,-480.0,0.00021917,2]
[381598401,1756294242305,-483.05,0.00021917,2]
[381598403,1756294242315,-480.0,0.00021917,2]
[381598405,1756294242325,-480.0,0.00021917,2]
[381598407,1756294242335,-480.0,0.00021917,2]
[381598409,1756294242345,-480.0,0.00021917,2]
[381598411,1756294242354,-151.0,0.00021917,2]
[381598413,1756294242363,-151.0,0.00021917,2]
[381598415,1756294242373,-151.0,0.00021917,2]
[381598417,1756294242382,-480.0,0.00021917,2]
[381598419,1756294242392,-151.0,0.00021917,2]
[381598421,1756294242401,-480.0,0.00021917,2]
[381598423,1756294242411,-480.0,0.00021917,2]
[381598425,1756294242421,-480.0,0.00021917,2]
[381598427,1756294242431,-480.0,0.00021917,2]
[381598429,1756294242441,-480.0,0.00021917,2]
[381598431,1756294242450,-480.0,0.00021917,2]
[381598433,1756294242461,-480.0,0.00021917,2]
[381598435,1756294242471,-480.0,0.00021917,2]
[381598437,1756294242480,-151.0,0.00021917,2]
[381598439,1756294242491,-151.0,0.00021917,2]
[381598441,1756294242501,-480.0,0.00021917,2]
[381598443,1756294242510,-151.0,0.00021917,2]
[381598445,1756294242523,-151.0,0.00021917,2]
[381598447,1756294242533,-480.0,0.00021917,2]
[381598449,1756294242542,-480.0,0.00021917,2]
[381598451,1756294242552,-480.0,0.00021917,2]
[381598453,1756294242562,-480.0,0.00021917,2]
[381598455,1756294242571,-480.0,0.00021917,2]
[381598457,1756294242580,-151.0,0.00021917,2]
[381598459,1756294242589,-151.0,0.00021917,2]
[381598461,1756294242599,-480.0,0.00021917,2]
[381598463,1756294242608,-152.6708,0.00021917,2]
[381598465,1756294242618,-480.0,0.00021917,2]
[381598467,1756294242627,-480.0,0.00021917,2]
[381598469,1756294242636,-498.92,0.00021917,2]
[381598471,1756294242646,-687.67,0.00021917,2]
[381598473,1756294242655,-480.0,0.00021917,2]
[381598475,1756294242664,-480.0,0.00021917,2]
[381598477,1756294242674,-480.0,0.00021917,2]
[381598479,1756294242683,-480.0,0.00021917,2]
[381598481,1756294242692,-151.0,0.00021917,2]
[381598483,1756294242701,-151.0,0.00021917,2]
[381598485,1756294242710,-526.99,0.00021917,2]
[381598488,1756294242719,-151.0,0.00021917,2]
[381598491,1756294242729,-151.0,0.00021917,2]
[381598494,1756294242738,-480.0,0.00021917,2]
[381598496,1756294242747,-480.0,0.00021917,2]
[381598499,1756294242756,-481.59477902,0.00021917,2]
[381598501,1756294242765,-480.0,0.00021917,2]
[381598503,1756294242775,-559.33,0.00021917,2]
[381598505,1756294242784,-480.0,0.00021917,2]
[381598507,1756294242793,-1166.15,0.00021917,2]
[381598510,1756294242802,-503.27,0.00021917,2]
[381598512,1756294242811,-480.0,0.00021917,2]
[381598541,1756294242986,-480.0,0.00021917,2]
[381598543,1756294242996,-819.7,0.00021917,2]
[381598545,1756294243006,-480.0,0.00021917,2]
[381598547,1756294243015,-480.0,0.00021917,2]
[381598549,1756294243025,-480.0,0.00021917,2]
[381598551,1756294243034,-151.0,0.00021917,2]
[381598553,1756294243045,-182.96409094,0.00021917,2]
[381598577,1756294243273,-136.68412655,0.00021917,2]
[381598602,1756294243507,-160.35178251,0.00021917,2]
[381598604,1756294243517,-152.177897,0.00021917,2]
[381598606,1756294243527,-322.06635949,0.00021917,2]
[381601374,1756294291327,1384.10458673,0.000199,2]
[381601375,1756294314933,-160.05387014,0.000201,2]
[381601376,1756294314958,-58.7907798,0.00020198,2]
[381601377,1756294317611,-100.25906053,0.00020198,2]
[381601378,1756294317635,-293.84608489,0.00020198,2]
[381601381,1756294468361,1367.90950753,0.000199,2]
[381601382,1756294524974,-311.39885059,0.00020479,2]
[381601383,1756294533974,497.481743,0.00019863,2]
[381601384,1756294570565,-327.70995805,0.00020479,2]
[381601385,1756294633886,2816.62719539,0.0002001,2]
[381601386,1756294633909,2183.37280461,0.0002001,2]
[381601387,1756294646677,1498.42871968,0.000199,2]
[381601388,1756294659999,-287.28130507,0.00020376,2]
[381601389,1756294662796,-317.7507465,0.00020376,2]
[381601390,1756294698922,6318.20847571,0.00019764,2]
[381601391,1756294698945,3681.79152429,0.00019764,2]
[381601392,1756294765382,449.126149,0.00013699,2]
[381601394,1756294785789,817.0153663,0.00019681,2]
[381601401,1756294831764,1488.76314878,0.000199,2]
[381601402,1756294832380,501.44786085,0.00019938,2]
[381601404,1756294832744,3061.86595078,0.0002001,2]
[381601405,1756294832766,1938.13404922,0.0002001,2]
[381601406,1756294833189,286.131834,0.0001968,2]
[381601407,1756294834678,2005.79144341,0.00019938,2]
[381601408,1756294836766,4508.51771693,0.00019938,2]
[381601411,1756294851676,1261.43495644,0.0002001,2]
[381601412,1756294851698,3738.56504356,0.0002001,2]
[381601416,1756294868235,5000.0,0.0002001,2]
[381601417,1756294884610,1261.44495644,0.0002001,2]
[381601418,1756294884634,3738.55504356,0.0002001,2]
[381601419,1756294901171,5000.0,0.0002001,2]
[381601420,1756294917095,1261.45495644,0.0002001,2]
[381601421,1756294917117,3738.54504356,0.0002001,2]
[381601422,1756294933702,5000.0,0.0002001,2]
[381601423,1756294936218,666.0,0.00019678,2]
[381601426,1756294951036,595.46495644,0.0002001,2]
[381601427,1756294951060,4404.53504356,0.0002001,2]
[381601430,1756294967538,5000.0,0.0002001,2]
[381601432,1756294985083,595.47495644,0.0002001,2]
[381601433,1756294985107,4404.52504356,0.0002001,2]
[381601436,1756295001236,5000.0,0.0002001,2]
[381601437,1756295009299,595.48495644,0.000199,2]
[381601438,1756295009325,1052.95586638,0.000199,2]
[381601440,1756295017232,5916.6630115,0.00019835,2]
[381601441,1756295017488,3030.39112212,0.0002001,2]
[381601442,1756295017510,1969.60887788,0.0002001,2]
[381601445,1756295033261,5000.0,0.0002001,2]
[381601446,1756295042205,161.88364495,0.00019777,2]
[381601447,1756295046691,188.75393839,0.00019777,2]
[381601449,1756295051023,2679.76353878,0.0002001,2]
[381601450,1756295051045,2320.23646122,0.0002001,2]
[381601453,1756295068303,5000.0,0.0002001,2]
[381601458,1756295133936,2679.77353878,0.00019682,2]
[381601459,1756295133960,1773.98107662,0.00019682,2]
[381601461,1756295138821,1114.32889477,0.0001978,2]
[381601465,1756295184381,1776.50192899,0.000199,2]
[381601466,1756295239409,747.22060233,0.0001978,2]
[381601467,1756295241666,397.4250688,0.00019658,2]
[381601468,1756295252670,4190.55242849,0.0002001,2]
[381601469,1756295252693,809.44757151,0.0002001,2]
[381601470,1756295260514,5000.0,0.0002001,2]
[381601472,1756295269405,4190.56242849,0.0002001,2]
[381601473,1756295269427,809.43757151,0.0002001,2]
[381601474,1756295277882,5000.0,0.0002001,2]
[381601475,1756295286770,4190.57242849,0.0002001,2]
[381601476,1756295286792,809.42757151,0.0002001,2]
[381601477,1756295295191,5000.0,0.0002001,2]
[381601478,1756295305062,4190.58242849,0.0002001,2]
[381601479,1756295305089,809.41757151,0.0002001,2]
[381601480,1756295313142,2977.46703228,0.0002001,2]
[381601481,1756295321798,5000.0,0.0002001,2]
[381601482,1756295322673,-263.51585752,0.000207,10]
[381601483,1756295322701,-267.14,0.00020809,10]
[381601484,1756295322729,-438.42,0.00020877,3]
[381601485,1756295322758,-219.21,0.00020877,3]
[381601486,1756295322787,-657.65,0.00020877,3]
[381601488,1756295337402,1213.12539621,0.0002001,2]
[381601489,1756295337424,3786.87460379,0.0002001,2]
[381601490,1756295353987,2729.0941904,0.0002001,2]
[381601491,1756295359192,1725.9349436,0.000199,2]
[381601508,1756295432481,-234.83730683,0.00020055,2]
[381601511,1756295432494,-449.126149,0.00020187,2]
[381601513,1756295432505,-156.06169757,0.00020475,2]
[381601515,1756295432516,-160.05387014,0.00020573,2]
[381601517,1756295432528,-300.0,0.00020673,2]
[381601519,1756295432541,-300.0,0.00020673,2]
[381601521,1756295432552,-300.0,0.00020673,2]
[381601524,1756295432564,-300.0,0.00020673,2]
[381601526,1756295432575,-1200.0,0.00020673,2]
[381601528,1756295432585,-1200.0,0.00020674,2]
[381601530,1756295432596,-314.55119377,0.00020674,2]
[381601532,1756295432607,-500.0,0.00020674,2]
[381601534,1756295432619,-500.0,0.00020674,2]
[381601536,1756295432630,-500.0,0.00020674,2]
[381601538,1756295432642,-418.94086064,0.00020674,2]
[381601540,1756295432654,-500.0,0.00020674,2]
[381601542,1756295432666,-500.0,0.00020674,2]
[381601546,1756295432678,-500.0,0.00020674,2]
[381601550,1756295432690,-500.0,0.00020674,2]
[381601553,1756295432702,-500.0,0.00020674,2]
[381601556,1756295432714,-500.0,0.00020674,2]
[381601559,1756295432726,-500.0,0.00020674,2]
[381601563,1756295432737,-1000.0285716,0.00020675,2]
[381601566,1756295432747,-21038.49266408,0.00020675,2]
[381601572,1756295432769,-3087.08053609,0.00020675,2]
[381602086,1756295438694,729.50277307,0.0001978,2]
[381602087,1756295438756,-231.59875354,0.00020087,2]
[381602088,1756295438766,-500.0,0.00020673,2]
[381602089,1756295438776,-500.0,0.00020673,2]
[381602090,1756295438785,-185.57514941,0.00020673,2]
[381602091,1756295438794,-500.0,0.00020673,2]
[381602092,1756295438804,-500.0,0.00020673,2]
[381602093,1756295438814,-500.0,0.00020673,2]
[381602094,1756295438823,-309.60550978,0.00020673,2]
[381602095,1756295438839,-18730.2305802,0.00020675,2]
[381602096,1756295438849,-708.36469696,0.00020721,2]
[381602097,1756295438858,-473386.60475028,0.00020819,2]
[381602098,1756295438867,-500.0,0.00020873,2]
[381602099,1756295438877,-500.0,0.00020873,2]
[381602100,1756295438886,-519.84673943,0.00020873,2]
[381602101,1756295438896,-500.0,0.00020873,2]
[381602102,1756295438907,-500.0,0.00020873,2]
[381602103,1756295438917,-500.0,0.00020873,2]
[381602104,1756295438927,-500.0,0.00020873,2]
[381602105,1756295438936,-500.0,0.00020873,2]
[381602106,1756295438945,-500.0,0.00020873,2]
[381602107,1756295438954,-500.0,0.00020873,2]
[381602108,1756295438963,-500.0,0.00020873,2]
[381602109,1756295438973,-370000.0,0.00020887,2]
[381602110,1756295438982,-708.36469696,0.00020995,2]
[381602111,1756295438992,-153.0,0.00021078,2]
[381602112,1756295439001,-153.0,0.00021096,2]
[381602113,1756295439011,-151.0,0.000211,4]
[381602114,1756295439020,-364.24690002,0.00021159,2]
[381602115,1756295439029,-306.0,0.00021178,2]
[381602116,1756295439039,-151.0,0.000212,3]
[381602117,1756295439048,-151.0,0.000212,3]
[381602118,1756295439057,-2566.40219485,0.00021263,2]
[381602119,1756295439066,-100000.0,0.00021263,2]
[381602120,1756295439075,-708.36469696,0.00021269,2]
[381602121,1756295439086,-775.70217146,0.00021286,2]
[381602122,1756295439095,-1000.0,0.00021421,2]
[381602123,1756295439105,-500.0,0.00021421,2]
[381602124,1756295439114,-500.0,0.00021421,2]
[381602125,1756295439124,-1000.0,0.00021421,2]
[381602126,1756295439133,-1000.0,0.00021421,2]
[381602127,1756295439143,-500.0,0.00021421,2]
[381602128,1756295439153,-500.0,0.00021421,2]
[381602129,1756295439163,-1000.0,0.00021421,2]
[381602130,1756295439172,-708.36469696,0.00021543,2]
[381602131,1756295439181,-1333.0,0.00021619,2]
[381602132,1756295439191,-1725.93494338,0.00021627,2]
[381602133,1756295439200,-8588.1986264,0.00021656,2]
[381602134,1756295439210,-1000.0,0.00021817,2]
[381602135,1756295439219,-708.36469696,0.00021817,2]
[381602136,1756295439228,-1081.0,0.00021822,2]
[381602137,1756295439237,-266.74402892,0.00021896,2]
[381602138,1756295439246,-239.28245469,0.00021896,2]
[381602139,1756295439256,-151.0,0.00021896,2]
[381602140,1756295439265,-151.0,0.00021896,2]
[381602141,1756295439274,-151.0,0.00021896,2]
[381602142,1756295439283,-500.0,0.00021896,2]
[381602143,1756295439292,-151.0,0.00021896,2]
[381602144,1756295439302,-151.0,0.00021896,2]
[381602145,1756295439311,-151.0,0.00021896,2]
[381602146,1756295439320,-151.0,0.00021896,2]
[381602147,1756295439330,-151.0,0.00021896,2]
[381602148,1756295439341,-151.0,0.00021896,2]
[381602149,1756295439350,-151.0,0.00021896,2]
[381602150,1756295439359,-151.0,0.00021896,2]
[381602151,1756295439369,-151.0,0.00021896,2]
[381602152,1756295439379,-151.0,0.00021896,2]
[381602153,1756295439388,-500.0,0.00021896,2]
[381602154,1756295439397,-151.0,0.00021896,2]
[381602155,1756295439406,-201.93286099,0.00021896,2]
[381602156,1756295439416,-151.0,0.00021896,2]
[381602157,1756295439425,-151.0,0.00021896,2]
[381602158,1756295439434,-151.0,0.00021896,2]
[381602159,1756295439444,-151.0,0.00021896,2]